[Event "*** Qualifier 3: Titled Tuesday 3|2 Blitz"]
[Site "Chess.com"]
[Date "2017.04.18"]
[Round "3"]
[White "popov_m"]
[Black "Spartakus1975"]
[Result "0-1"]
[WhiteElo "2411"]
[BlackElo "2567"]
[TimeControl "180+2"]
[EndTime "13:41:28 PDT"]
[Termination "Spartakus1975 won by resignation"]

1. c4 {[%clk 0:03:02]} 1... e5 {[%clk 0:02:59.3]} 2. g3 {[%clk 0:03:02.8]} 2...
Nf6 {[%clk 0:02:56.7]} 3. Bg2 {[%clk 0:03:04.2]} 3... h6 {[%clk 0:02:57.7]} 4.
Nc3 {[%clk 0:03:03.1]} 4... Bb4 {[%clk 0:02:58.4]} 5. Nd5 {[%clk 0:03:04]} 5...
Nxd5 {[%clk 0:02:52.1]} 6. cxd5 {[%clk 0:03:04.9]} 6... O-O {[%clk 0:02:53.4]}
7. Nf3 {[%clk 0:02:59.3]} 7... d6 {[%clk 0:02:50.8]} 8. O-O {[%clk 0:03:00.3]}
8... c6 {[%clk 0:02:44.3]} 9. dxc6 {[%clk 0:02:52.1]} 9... Nxc6 {[%clk
0:02:44.4]} 10. a3 {[%clk 0:02:52.6]} 10... Ba5 {[%clk 0:02:42.9]} 11. b4 {[%clk
0:02:54.1]} 11... Bb6 {[%clk 0:02:43.9]} 12. Bb2 {[%clk 0:02:55.8]} 12... e4
{[%clk 0:02:34.2]} 13. Ne1 {[%clk 0:02:47.9]} 13... d5 {[%clk 0:02:35.2]} 14. d3
{[%clk 0:02:35.6]} 14... Bf5 {[%clk 0:02:27.4]} 15. dxe4 {[%clk 0:02:26.8]}
15... dxe4 {[%clk 0:02:28]} 16. Nc2 {[%clk 0:02:24.6]} 16... Qe7 {[%clk
0:02:08.1]} 17. Ne3 {[%clk 0:01:53.8]} 17... Bxe3 {[%clk 0:02:01.5]} 18. fxe3
{[%clk 0:01:51.6]} 18... Bg6 {[%clk 0:01:54.9]} 19. b5 {[%clk 0:01:29.7]} 19...
Rad8 {[%clk 0:01:36.8]} 20. Qa4 {[%clk 0:01:28.8]} 20... Ne5 {[%clk 0:01:33.4]}
21. Bd4 {[%clk 0:00:52.7]} 21... b6 {[%clk 0:01:28.9]} 22. Qb3 {[%clk
0:00:48.3]} 22... Rd7 {[%clk 0:01:22.7]} 23. a4 {[%clk 0:00:48.2]} 23... Rfd8
{[%clk 0:01:22.1]} 24. a5 {[%clk 0:00:48.4]} 24... Rxd4 {[%clk 0:01:12]} 25.
exd4 {[%clk 0:00:48.7]} 25... Rxd4 {[%clk 0:01:13.5]} 26. axb6 {[%clk
0:00:49.5]} 26... axb6 {[%clk 0:01:13.7]} 27. Qe3 {[%clk 0:00:44]} 27... Qc5
{[%clk 0:01:10.3]} 28. Rac1 {[%clk 0:00:39.6]} 28... Nc4 {[%clk 0:01:10.3]} 29.
Qf2 {[%clk 0:00:34.8]} 29... Qd6 {[%clk 0:00:55.4]} 30. Qf4 {[%clk 0:00:30.6]}
30... Qd5 {[%clk 0:00:41.9]} 31. h4 {[%clk 0:00:20.3]} 31... h5 {[%clk
0:00:26.3]} 32. Kh2 {[%clk 0:00:16.1]} 32... Kh7 {[%clk 0:00:27.1]} 33. Qb8
{[%clk 0:00:06.6]} 33... Ne3 {[%clk 0:00:16.8]} 34. Rf2 {[%clk 0:00:04.1]} 34...
Ng4+ {[%clk 0:00:17.3]} 35. Kg1 {[%clk 0:00:05.6]} 35... Nxf2 {[%clk 0:00:18]}
36. Kxf2 {[%clk 0:00:07.5]} 36... e3+ {[%clk 0:00:15.8]} 37. Kg1 {[%clk
0:00:08.5]} 37... Rd1+ {[%clk 0:00:16.1]} 38. Rxd1 {[%clk 0:00:08.6]} 38...
Qxd1+ {[%clk 0:00:16.6]} 39. Bf1 {[%clk 0:00:10.1]} 39... Qe1 {[%clk 0:00:14.8]}
40. Qf4 {[%clk 0:00:10.6]} 40... Qc3 {[%clk 0:00:13.4]} 41. g4 {[%clk
0:00:09.5]} 41... hxg4 {[%clk 0:00:13.2]} 42. Qxg4 {[%clk 0:00:11.4]} 42... Qe5
{[%clk 0:00:13.8]} 43. Qh3 {[%clk 0:00:09.9]} 43... Qxb5 {[%clk 0:00:11.8]} 44.
Qxe3 {[%clk 0:00:11.1]} 44... Qc5 {[%clk 0:00:13.4]} 45. Kf2 {[%clk 0:00:12.6]}
45... Bf5 {[%clk 0:00:11.6]} 46. Bg2 {[%clk 0:00:12.2]} 46... Kg6 {[%clk
0:00:11.7]} 47. Bf3 {[%clk 0:00:12.9]} 47... Kf6 {[%clk 0:00:12]} 48. Qxc5
{[%clk 0:00:11.4]} 48... bxc5 {[%clk 0:00:12.6]} 49. e4 {[%clk 0:00:12]} 49...
Bh7 {[%clk 0:00:12]} 50. Ke3 {[%clk 0:00:13.3]} 50... Ke5 {[%clk 0:00:13.6]} 51.
Bg2 {[%clk 0:00:14]} 51... f6 {[%clk 0:00:14.7]} 52. Bf3 {[%clk 0:00:14.4]}
52... c4 {[%clk 0:00:16]} 53. Be2 {[%clk 0:00:14.8]} 53... c3 {[%clk 0:00:16]}
54. Bd3 {[%clk 0:00:15.7]} 54... f5 {[%clk 0:00:15.4]} 55. exf5 {[%clk 0:00:09]}
55... Bxf5 {[%clk 0:00:16.2]} 56. h5 {[%clk 0:00:09.9]} 56... c2 {[%clk
0:00:13.9]} 57. Bxc2 {[%clk 0:00:08.1]} 57... Bxc2 {[%clk 0:00:14.4]} 58. h6
{[%clk 0:00:09.7]} 58... g5 {[%clk 0:00:15.4]} 59. Kf3 {[%clk 0:00:10.1]} 59...
Bg6 {[%clk 0:00:13.4]} 60. Kg4 {[%clk 0:00:09.9]} 60... Kf6 {[%clk 0:00:14.9]}
0-1

[Event "*** Qualifier 3: Titled Tuesday 3|2 Blitz"]
[Site "Chess.com"]
[Date "2017.04.18"]
[Round "3"]
[White "JusticeBot"]
[Black "Lupul_Cenusiu"]
[Result "0-1"]
[WhiteElo "2513"]
[BlackElo "2459"]
[TimeControl "180+2"]
[EndTime "13:41:30 PDT"]
[Termination "Lupul_Cenusiu won by resignation"]

1. e4 {[%clk 0:03:02]} 1... g6 {[%clk 0:02:57.8]} 2. d4 {[%clk 0:03:03.1]} 2...
Bg7 {[%clk 0:02:59]} 3. Nc3 {[%clk 0:03:05]} 3... d6 {[%clk 0:03:00.2]} 4. Nf3
{[%clk 0:03:06.1]} 4... Nf6 {[%clk 0:03:00.7]} 5. h3 {[%clk 0:03:05.6]} 5... O-O
{[%clk 0:03:01.2]} 6. Be2 {[%clk 0:03:06.7]} 6... c6 {[%clk 0:03:02.4]} 7. O-O
{[%clk 0:03:08.1]} 7... Qa5 {[%clk 0:03:02.4]} 8. Bf4 {[%clk 0:02:52.2]} 8...
Nbd7 {[%clk 0:03:01.6]} 9. Bh2 {[%clk 0:02:47]} 9... e5 {[%clk 0:03:01.8]} 10.
Re1 {[%clk 0:02:37.8]} 10... h6 {[%clk 0:02:59.2]} 11. Bf1 {[%clk 0:02:38.6]}
11... Re8 {[%clk 0:02:56.7]} 12. a4 {[%clk 0:02:22]} 12... Qc7 {[%clk
0:02:54.6]} 13. Qd2 {[%clk 0:02:18.7]} 13... Nf8 {[%clk 0:02:53.7]} 14. Rad1
{[%clk 0:02:15]} 14... a5 {[%clk 0:02:53.4]} 15. dxe5 {[%clk 0:02:10.9]} 15...
dxe5 {[%clk 0:02:54.3]} 16. Qd6 {[%clk 0:02:12.6]} 16... Qxd6 {[%clk 0:02:53.5]}
17. Rxd6 {[%clk 0:02:14.5]} 17... N6d7 {[%clk 0:02:47.2]} 18. Red1 {[%clk
0:02:15]} 18... Nb6 {[%clk 0:02:40.7]} 19. Rd8 {[%clk 0:02:14.7]} 19... Bd7
{[%clk 0:02:41.3]} 20. Rxa8 {[%clk 0:02:11.7]} 20... Nxa8 {[%clk 0:02:42.4]} 21.
Bc4 {[%clk 0:02:10.7]} 21... Nb6 {[%clk 0:02:34.3]} 22. Bb3 {[%clk 0:02:11.4]}
22... Bf6 {[%clk 0:02:26.9]} 23. Rd6 {[%clk 0:01:59.2]} 23... Kg7 {[%clk
0:02:26.4]} 24. Nd1 {[%clk 0:01:41.6]} 24... Nc8 {[%clk 0:02:26.8]} 25. Rd3
{[%clk 0:01:39.8]} 25... Be6 {[%clk 0:02:15.3]} 26. Ne3 {[%clk 0:01:40.3]} 26...
Bxb3 {[%clk 0:02:15.3]} 27. Rxb3 {[%clk 0:01:42.2]} 27... Nd6 {[%clk 0:02:12.4]}
28. Ng4 {[%clk 0:01:34.3]} 28... Nd7 {[%clk 0:02:02.8]} 29. Rd3 {[%clk
0:01:34.4]} 29... Re6 {[%clk 0:02:03.5]} 30. Nfxe5 {[%clk 0:01:12.8]} 30... Nxe5
{[%clk 0:01:53]} 31. Bxe5 {[%clk 0:01:05.5]} 31... Bxe5 {[%clk 0:01:51.2]} 32.
Nxe5 {[%clk 0:01:07.4]} 32... Nxe4 {[%clk 0:01:46.1]} 33. Nc4 {[%clk 0:01:02]}
33... Nc5 {[%clk 0:01:47]} 34. Rd8 {[%clk 0:00:47.9]} 34... Nxa4 {[%clk
0:01:47.3]} 35. b3 {[%clk 0:00:41.1]} 35... Nc3 {[%clk 0:01:47.4]} 36. Nxa5
{[%clk 0:00:42.4]} 36... b6 {[%clk 0:01:48.3]} 37. Nc4 {[%clk 0:00:40.5]} 37...
Nd5 {[%clk 0:01:48.9]} 38. Rc8 {[%clk 0:00:38.9]} 38... h5 {[%clk 0:01:47.4]}
39. g3 {[%clk 0:00:38.3]} 39... c5 {[%clk 0:01:36.1]} 40. Kg2 {[%clk 0:00:34.8]}
40... Nb4 {[%clk 0:01:36]} 41. Ne3 {[%clk 0:00:34.5]} 41... Rd6 {[%clk
0:01:32.8]} 42. Rb8 {[%clk 0:00:34.6]} 42... Rc6 {[%clk 0:01:30.4]} 43. Rb7
{[%clk 0:00:31.7]} 43... Rd6 {[%clk 0:01:29.7]} 44. c3 {[%clk 0:00:32]} 44...
Na2 {[%clk 0:01:30]} 45. Nc4 {[%clk 0:00:30.3]} 45... Re6 {[%clk 0:01:30.6]} 46.
Nxb6 {[%clk 0:00:28.8]} 46... Nxc3 {[%clk 0:01:31.3]} 47. Nd7 {[%clk 0:00:22.8]}
47... Ne4 {[%clk 0:01:30.2]} 48. Nb6 {[%clk 0:00:11.9]} 48... Rf6 {[%clk
0:01:27.1]} 49. f4 {[%clk 0:00:13.2]} 49... Rd6 {[%clk 0:01:23.5]} 50. Nc4
{[%clk 0:00:14.4]} 50... Rd3 {[%clk 0:01:24.1]} 51. Rxf7+ {[%clk 0:00:13.3]}
51... Kg8 {[%clk 0:01:23.6]} 52. Ne5 {[%clk 0:00:12.9]} 52... Rxg3+ {[%clk
0:01:23.3]} 53. Kh2 {[%clk 0:00:14.4]} 53... Rxb3 {[%clk 0:01:23]} 54. Rc7
{[%clk 0:00:15.6]} 54... Rb2+ {[%clk 0:01:23.4]} 55. Kg1 {[%clk 0:00:16.8]}
55... Rb3 {[%clk 0:01:23.7]} 56. Kg2 {[%clk 0:00:15.3]} 56... Rg3+ {[%clk
0:01:24]} 57. Kh2 {[%clk 0:00:16.7]} 57... h4 {[%clk 0:01:25.4]} 58. Rc6 {[%clk
0:00:17.4]} 58... Kg7 {[%clk 0:01:24.5]} 59. Rc7+ {[%clk 0:00:18.9]} 59... Kf6
{[%clk 0:01:25.5]} 60. Ng4+ {[%clk 0:00:19]} 60... Kf5 {[%clk 0:01:25.5]} 61.
Rf7+ {[%clk 0:00:20.2]} 61... Ke6 {[%clk 0:01:26.6]} 62. Rf8 {[%clk 0:00:21.7]}
62... Nd2 {[%clk 0:01:26.2]} 63. Ne5 {[%clk 0:00:20.9]} 63... c4 {[%clk
0:01:27.4]} 64. Rd8 {[%clk 0:00:21.1]} 64... c3 {[%clk 0:01:27.6]} 65. Rc8
{[%clk 0:00:22.6]} 65... Kf5 {[%clk 0:01:28.3]} 66. Rc6 {[%clk 0:00:14.8]} 66...
Nf1+ {[%clk 0:01:26.4]} 67. Kh1 {[%clk 0:00:15.5]} 67... Nd2 {[%clk 0:01:27.5]}
68. Kh2 {[%clk 0:00:16.6]} 68... Ne4 {[%clk 0:01:28.5]} 69. Nf7 {[%clk
0:00:03.3]} 69... Nd2 {[%clk 0:01:28.8]} 70. Ne5 {[%clk 0:00:02.5]} 70... g5
{[%clk 0:01:29.9]} 71. Nc4 {[%clk 0:00:02.2]} 71... Nxc4 {[%clk 0:01:29.2]} 72.
Rxc4 {[%clk 0:00:04.1]} 72... gxf4 {[%clk 0:01:30.6]} 73. Rc5+ {[%clk 0:00:06]}
73... Ke6 {[%clk 0:01:31.7]} 74. Rc4 {[%clk 0:00:07.9]} 74... Ke5 {[%clk
0:01:33.1]} 75. Rc5+ {[%clk 0:00:09.4]} 75... Kd4 {[%clk 0:01:34.3]} 76. Rc7
{[%clk 0:00:09.9]} 76... Kd3 {[%clk 0:01:35.6]} 77. Rd7+ {[%clk 0:00:10.8]}
77... Ke2 {[%clk 0:01:36.2]} 78. Re7+ {[%clk 0:00:12.2]} 78... Re3 {[%clk
0:01:37.4]} 79. Rc7 {[%clk 0:00:13.5]} 79... Kd2 {[%clk 0:01:38.1]} 80. Rd7+
{[%clk 0:00:11.2]} 80... Rd3 {[%clk 0:01:39.2]} 81. Ra7 {[%clk 0:00:11.7]} 81...
c2 {[%clk 0:01:39.9]} 82. Ra1 {[%clk 0:00:12.8]} 82... c1=Q {[%clk 0:01:40.2]}
0-1

[Event "*** Qualifier 3: Titled Tuesday 3|2 Blitz"]
[Site "Chess.com"]
[Date "2017.04.18"]
[Round "3"]
[White "pastouche06"]
[Black "Marcus_Harvey"]
[Result "0-1"]
[WhiteElo "2326"]
[BlackElo "2514"]
[TimeControl "180+2"]
[EndTime "13:41:43 PDT"]
[Termination "Marcus_Harvey won by resignation"]

1. c4 {[%clk 0:03:02]} 1... e6 {[%clk 0:02:37.7]} 2. Nc3 {[%clk 0:02:55.7]} 2...
Nf6 {[%clk 0:02:37.7]} 3. d4 {[%clk 0:02:56.2]} 3... Bb4 {[%clk 0:02:37]} 4. e3
{[%clk 0:02:57.2]} 4... O-O {[%clk 0:02:38]} 5. Ne2 {[%clk 0:02:57.7]} 5... d6
{[%clk 0:02:38.7]} 6. a3 {[%clk 0:02:57.4]} 6... Bxc3+ {[%clk 0:02:39.3]} 7.
Nxc3 {[%clk 0:02:59.3]} 7... e5 {[%clk 0:02:40.8]} 8. Be2 {[%clk 0:02:58.7]}
8... Re8 {[%clk 0:02:41.8]} 9. O-O {[%clk 0:02:58.7]} 9... Nc6 {[%clk 0:02:43]}
10. d5 {[%clk 0:02:59.6]} 10... Ne7 {[%clk 0:02:44.1]} 11. e4 {[%clk 0:02:44.6]}
11... Ng6 {[%clk 0:02:42.7]} 12. g3 {[%clk 0:02:44.2]} 12... Bh3 {[%clk
0:02:39.8]} 13. Re1 {[%clk 0:02:44.6]} 13... c6 {[%clk 0:02:40.6]} 14. Bg5
{[%clk 0:02:38.5]} 14... h6 {[%clk 0:02:41]} 15. Be3 {[%clk 0:02:38.8]} 15...
cxd5 {[%clk 0:02:35.2]} 16. cxd5 {[%clk 0:02:40.7]} 16... a6 {[%clk 0:02:22.2]}
17. a4 {[%clk 0:02:37.3]} 17... Nf8 {[%clk 0:02:07.2]} 18. a5 {[%clk 0:02:29.7]}
18... N8d7 {[%clk 0:02:07.4]} 19. f3 {[%clk 0:02:26.7]} 19... Rc8 {[%clk
0:01:46.2]} 20. Qd2 {[%clk 0:02:19.2]} 20... Qc7 {[%clk 0:01:24.4]} 21. Rec1
{[%clk 0:02:07.2]} 21... Nc5 {[%clk 0:01:19.6]} 22. Ra3 {[%clk 0:01:51.1]} 22...
Qb8 {[%clk 0:01:16.6]} 23. Nd1 {[%clk 0:01:50.5]} 23... Bd7 {[%clk 0:01:01]} 24.
b4 {[%clk 0:01:43.3]} 24... Ncxe4 {[%clk 0:00:55.9]} 25. fxe4 {[%clk 0:01:42.4]}
25... Nxe4 {[%clk 0:00:57.2]} 26. Qb2 {[%clk 0:01:14.4]} 26... Rxc1 {[%clk
0:00:54.4]} 27. Qxc1 {[%clk 0:01:14.3]} 27... Bb5 {[%clk 0:00:53.4]} 28. Bxb5
{[%clk 0:01:10.2]} 28... axb5 {[%clk 0:00:55.3]} 29. Nf2 {[%clk 0:01:10]} 29...
Nf6 {[%clk 0:00:55.2]} 30. Rd3 {[%clk 0:01:07.9]} 30... Rc8 {[%clk 0:00:54.5]}
31. Qb2 {[%clk 0:01:03.9]} 31... Qc7 {[%clk 0:00:54.2]} 32. Nd1 {[%clk 0:00:57]}
32... Qd7 {[%clk 0:00:50.4]} 33. Qd2 {[%clk 0:00:53.4]} 33... Rc4 {[%clk
0:00:45]} 34. Bb6 {[%clk 0:00:47.4]} 34... Qc8 {[%clk 0:00:32.7]} 35. Ne3 {[%clk
0:00:47.4]} 35... Rc1+ {[%clk 0:00:32.9]} 36. Kg2 {[%clk 0:00:48.8]} 36... Ne4
{[%clk 0:00:32.4]} 37. Qe2 {[%clk 0:00:45.1]} 37... Ng5 {[%clk 0:00:32.4]} 38.
Qg4 {[%clk 0:00:43.1]} 38... Rc2+ {[%clk 0:00:32.3]} 39. Kf1 {[%clk 0:00:40.4]}
39... Rc1+ {[%clk 0:00:21.5]} 40. Ke2 {[%clk 0:00:41.5]} 40... Qxg4+ {[%clk
0:00:17.4]} 41. Nxg4 {[%clk 0:00:42]} 41... Ne4 {[%clk 0:00:18.4]} 42. Ne3
{[%clk 0:00:33.4]} 42... Rb1 {[%clk 0:00:18]} 43. Nf5 {[%clk 0:00:27.5]} 43...
g6 {[%clk 0:00:14.3]} 44. Nxh6+ {[%clk 0:00:25.5]} 44... Kg7 {[%clk 0:00:15.4]}
45. Ng4 {[%clk 0:00:27.1]} 45... f5 {[%clk 0:00:16.2]} 46. Ne3 {[%clk
0:00:27.2]} 46... Rb2+ {[%clk 0:00:17.5]} 47. Ke1 {[%clk 0:00:24.9]} 47... Rxh2
{[%clk 0:00:17.9]} 48. Ra3 {[%clk 0:00:25.6]} 48... Rb2 {[%clk 0:00:16.9]} 49.
a6 {[%clk 0:00:25.8]} 49... bxa6 {[%clk 0:00:18.2]} 50. Rxa6 {[%clk 0:00:27.7]}
50... Rxb4 {[%clk 0:00:18.9]} 51. Ba5 {[%clk 0:00:27.9]} 51... Ra4 {[%clk
0:00:19.7]} 52. Ra7+ {[%clk 0:00:28.5]} 52... Kh6 {[%clk 0:00:21]} 53. Bb6
{[%clk 0:00:30.4]} 53... Rxa7 {[%clk 0:00:20.8]} 54. Bxa7 {[%clk 0:00:32.3]}
54... f4 {[%clk 0:00:21.5]} 55. gxf4 {[%clk 0:00:33.1]} 55... exf4 {[%clk
0:00:23.4]} 56. Nd1 {[%clk 0:00:31.9]} 56... Kg5 {[%clk 0:00:24.3]} 57. Nf2
{[%clk 0:00:30.9]} 57... Nf6 {[%clk 0:00:24.9]} 58. Bb8 {[%clk 0:00:30.6]} 58...
Nxd5 {[%clk 0:00:26.2]} 59. Bxd6 {[%clk 0:00:31.8]} 59... Kf5 {[%clk 0:00:27.7]}
60. Ba3 {[%clk 0:00:31.9]} 60... g5 {[%clk 0:00:28.9]} 61. Ke2 {[%clk
0:00:32.2]} 61... g4 {[%clk 0:00:30.1]} 62. Bb2 {[%clk 0:00:31.4]} 62... f3+
{[%clk 0:00:30.5]} 63. Kf1 {[%clk 0:00:32]} 63... g3 {[%clk 0:00:31.7]} 64. Nd1
{[%clk 0:00:29.3]} 64... Kg4 {[%clk 0:00:30.6]} 65. Bd4 {[%clk 0:00:28.8]} 65...
b4 {[%clk 0:00:31]} 66. Ne3+ {[%clk 0:00:26.9]} 66... Nxe3+ {[%clk 0:00:31.7]}
67. Bxe3 {[%clk 0:00:28.6]} 67... b3 {[%clk 0:00:32.2]} 68. Bd4 {[%clk 0:00:29]}
68... Kf5 {[%clk 0:00:33.3]} 69. Bb2 {[%clk 0:00:28.5]} 69... Ke4 {[%clk
0:00:34.6]} 70. Bf6 {[%clk 0:00:26.6]} 70... Kd3 {[%clk 0:00:35.2]} 0-1

[Event "*** Qualifier 3: Titled Tuesday 3|2 Blitz"]
[Site "Chess.com"]
[Date "2017.04.18"]
[Round "3"]
[White "Iball95"]
[Black "Fandorine"]
[Result "0-1"]
[WhiteElo "2536"]
[BlackElo "2691"]
[TimeControl "180+2"]
[EndTime "13:42:08 PDT"]
[Termination "Fandorine won by resignation"]

1. e4 {[%clk 0:03:02]} 1... c5 {[%clk 0:03:01.1]} 2. Nf3 {[%clk 0:03:02.7]} 2...
e6 {[%clk 0:03:02.7]} 3. g3 {[%clk 0:03:02.9]} 3... Nc6 {[%clk 0:03:01.7]} 4.
Bg2 {[%clk 0:03:03.7]} 4... Nf6 {[%clk 0:03:01.6]} 5. Qe2 {[%clk 0:03:04.9]}
5... e5 {[%clk 0:03:03.1]} 6. O-O {[%clk 0:03:05.4]} 6... Be7 {[%clk 0:03:04.6]}
7. d3 {[%clk 0:03:00.5]} 7... O-O {[%clk 0:03:05.4]} 8. Bg5 {[%clk 0:03:00.9]}
8... d6 {[%clk 0:03:04.7]} 9. c3 {[%clk 0:03:00.4]} 9... Be6 {[%clk 0:03:01.5]}
10. Na3 {[%clk 0:02:55.7]} 10... Re8 {[%clk 0:03:01.6]} 11. Nc4 {[%clk
0:02:49.1]} 11... h6 {[%clk 0:02:53.2]} 12. Bxf6 {[%clk 0:02:49.3]} 12... Bxf6
{[%clk 0:02:54.8]} 13. Ne3 {[%clk 0:02:50.6]} 13... Ne7 {[%clk 0:02:56.5]} 14.
c4 {[%clk 0:02:51.3]} 14... g6 {[%clk 0:02:55.6]} 15. Nd5 {[%clk 0:02:38.8]}
15... Nxd5 {[%clk 0:02:47.7]} 16. cxd5 {[%clk 0:02:40.7]} 16... Bd7 {[%clk
0:02:47.6]} 17. Nd2 {[%clk 0:02:41.3]} 17... b5 {[%clk 0:02:46.4]} 18. h4 {[%clk
0:02:37.8]} 18... h5 {[%clk 0:02:43.3]} 19. Kh2 {[%clk 0:02:37.6]} 19... a5
{[%clk 0:02:40.4]} 20. Bh3 {[%clk 0:02:37.7]} 20... Bxh3 {[%clk 0:02:38.3]} 21.
Kxh3 {[%clk 0:02:39.6]} 21... Qd7+ {[%clk 0:02:39.9]} 22. Kg2 {[%clk 0:02:40.6]}
22... a4 {[%clk 0:02:41]} 23. Rac1 {[%clk 0:02:38.8]} 23... Bg7 {[%clk
0:02:37.1]} 24. Nf3 {[%clk 0:02:36.4]} 24... Bh6 {[%clk 0:02:38.5]} 25. Rc2
{[%clk 0:02:37.3]} 25... Rec8 {[%clk 0:02:34.2]} 26. Nd2 {[%clk 0:02:27.9]}
26... Qe7 {[%clk 0:02:26.5]} 27. Qd1 {[%clk 0:02:09]} 27... Rc7 {[%clk
0:02:09.1]} 28. Qe2 {[%clk 0:02:06.9]} 28... Rac8 {[%clk 0:02:09.7]} 29. Qd1
{[%clk 0:01:58.3]} 29... Qd7 {[%clk 0:01:32.4]} 30. Qe2 {[%clk 0:01:56.7]} 30...
Qg4 {[%clk 0:01:21.5]} 31. Qxg4 {[%clk 0:00:52.7]} 31... hxg4 {[%clk 0:01:20.9]}
32. Rd1 {[%clk 0:00:40.7]} 32... c4 {[%clk 0:01:07.5]} 33. dxc4 {[%clk
0:00:29.1]} 33... Bxd2 {[%clk 0:01:08]} 34. Rcxd2 {[%clk 0:00:21.5]} 34... Rxc4
{[%clk 0:01:09]} 35. Re1 {[%clk 0:00:23]} 35... Kg7 {[%clk 0:01:01.5]} 36. Ree2
{[%clk 0:00:21.8]} 36... b4 {[%clk 0:00:58.5]} 37. f3 {[%clk 0:00:22.4]} 37...
gxf3+ {[%clk 0:00:59]} 38. Kxf3 {[%clk 0:00:24.3]} 38... f5 {[%clk 0:00:58.2]}
39. g4 {[%clk 0:00:20.2]} 39... fxe4+ {[%clk 0:00:56.3]} 40. Rxe4 {[%clk
0:00:20.8]} 40... Rf8+ {[%clk 0:00:53.5]} 41. Ke3 {[%clk 0:00:21.9]} 41... Rxe4+
{[%clk 0:00:54.7]} 42. Kxe4 {[%clk 0:00:23.8]} 42... Rf4+ {[%clk 0:00:56.2]} 43.
Ke3 {[%clk 0:00:25.7]} 43... Rxg4 {[%clk 0:00:56.4]} 44. Rc2 {[%clk 0:00:27]}
44... Rd4 {[%clk 0:00:46.7]} 45. Rc7+ {[%clk 0:00:18.5]} 45... Kf6 {[%clk
0:00:37.6]} 46. Ra7 {[%clk 0:00:19.4]} 46... b3 {[%clk 0:00:37.4]} 47. axb3
{[%clk 0:00:20.1]} 47... axb3 {[%clk 0:00:39.3]} 48. Ra5 {[%clk 0:00:21]} 48...
Kf5 {[%clk 0:00:34.1]} 49. Rb5 {[%clk 0:00:18.4]} 49... Rxh4 {[%clk 0:00:21.5]}
50. Rb6 {[%clk 0:00:19.1]} 50... Rh3+ {[%clk 0:00:20.1]} 51. Kd2 {[%clk
0:00:20.4]} 51... Ke4 {[%clk 0:00:17.8]} 52. Rxd6 {[%clk 0:00:21.5]} 52... g5
{[%clk 0:00:15.8]} 53. Rg6 {[%clk 0:00:22.4]} 53... Kxd5 {[%clk 0:00:13.6]} 54.
Rxg5 {[%clk 0:00:23.8]} 54... Kd4 {[%clk 0:00:15.2]} 55. Rg8 {[%clk 0:00:22.5]}
55... Rh2+ {[%clk 0:00:16.3]} 56. Kc1 {[%clk 0:00:22.8]} 56... Rc2+ {[%clk
0:00:17.7]} 57. Kb1 {[%clk 0:00:24.3]} 57... e4 {[%clk 0:00:15.1]} 58. Rb8
{[%clk 0:00:23.7]} 58... e3 {[%clk 0:00:12.1]} 59. Rxb3 {[%clk 0:00:20.2]} 59...
Rc5 {[%clk 0:00:08.6]} 60. Rb4+ {[%clk 0:00:18.5]} 60... Kd3 {[%clk 0:00:09.6]}
61. Rb3+ {[%clk 0:00:18.8]} 61... Kd2 {[%clk 0:00:10.6]} 62. Rb8 {[%clk
0:00:09.7]} 62... Rc1+ {[%clk 0:00:11.5]} 63. Ka2 {[%clk 0:00:10.6]} 63... e2
{[%clk 0:00:13.1]} 64. Rd8+ {[%clk 0:00:12]} 64... Ke3 {[%clk 0:00:14.5]} 65.
Re8+ {[%clk 0:00:13.4]} 65... Kf3 {[%clk 0:00:14.4]} 66. Rf8+ {[%clk 0:00:09.3]}
66... Kg4 {[%clk 0:00:15.6]} 67. Re8 {[%clk 0:00:09]} 67... e1=Q {[%clk
0:00:15.8]} 68. Rxe1 {[%clk 0:00:10.9]} 68... Rxe1 {[%clk 0:00:17.7]} 69. b4
{[%clk 0:00:12.6]} 69... Kf5 {[%clk 0:00:19.4]} 70. Kb3 {[%clk 0:00:13.9]} 70...
Ke6 {[%clk 0:00:20.8]} 0-1